bitfinex-derivatives/quotes_BTCF0:USTF0_20250417
["timestamp","ask_amount","ask_price","bid_price","bid_amount"]
[1744898611710,0.2186637,84358.0,84352.0,0.000108]
[1744898611711,0.0592836,84356.0,84352.0,0.000108]
[1744898611913,0.1185834,84344.0,84343.0,0.0848]
[1744898612210,0.1185834,84344.0,84343.0,0.30636842]
[1744898612407,0.1185834,84344.0,84343.0,0.42655826]
[1744898613104,0.1185834,84344.0,84343.0,0.42855826]
[1744898613298,0.1185834,84344.0,84343.0,0.41959975]
[1744898613497,0.1185834,84344.0,84343.0,0.12218984]
[1744898613811,0.1186031,84330.0,84329.0,0.01391433]
[1744898613998,0.4794031,84330.0,84329.0,0.00509905]
[1744898614397,0.4794031,84330.0,84329.0,0.00517905]
[1744898614799,0.4794031,84330.0,84329.0,0.12378355]
[1744898615005,0.4894031,84330.0,84329.0,0.00517905]
[1744898615805,0.4904031,84330.0,84329.0,0.00517905]
[1744898616606,0.5764031,84330.0,84329.0,0.00517905]
[1744898616994,0.5764031,84330.0,84329.0,0.00509905]
[1744898617201,0.5764031,84330.0,84329.0,0.00517905]
[1744898617396,0.5764031,84330.0,84329.0,0.00509905]
[1744898617606,0.5754031,84330.0,84329.0,0.00517905]
[1744898617810,0.1186115,84324.0,84323.0,0.00045]
[1744898618504,0.11,84324.0,84318.0,0.000108]
[1744898618705,0.3608,84319.0,84302.0,0.01212702]
[1744898618901,0.1186439,84301.0,84279.0,0.0593369]
[1744898619104,0.1186439,84301.0,84289.0,0.1186598]
[1744898619105,0.7394439,84301.0,84289.0,0.1186598]
[1744898619306,0.7394439,84301.0,84292.0,0.118656]
[1744898619502,0.7394439,84301.0,84289.0,0.1186602]
[1744898619709,0.7394439,84301.0,84289.0,0.1186599]
[1744898619905,0.7394439,84301.0,84288.0,0.059331]
[1744898620105,0.7394439,84301.0,84285.0,0.06838463]
[1744898620308,0.7394439,84301.0,84286.0,0.059332]
[1744898620605,0.7394439,84301.0,84300.0,0.10008]
[1744898621207,0.7404439,84301.0,84300.0,0.10008]
[1744898621605,0.7424439,84301.0,84300.0,0.10008]
[1744898622005,0.7424439,84301.0,84300.0,0.1]
[1744898622203,0.7424439,84301.0,84300.0,0.10008]
[1744898622811,0.1186593,84290.0,84282.0,0.1984297]
[1744898623008,0.1186678,84284.0,84283.0,0.0841]
[1744898623408,0.1186762,84278.0,84277.0,0.00510219]
[1744898623816,0.1186762,84278.0,84277.0,0.12377979]
[1744898624910,0.1196762,84278.0,84277.0,0.12377979]
[1744898625110,0.1196762,84278.0,84277.0,0.20617979]
[1744898626311,0.1206762,84278.0,84277.0,0.20617979]
[1744898626513,0.002,84278.0,84277.0,0.53897954]
[1744898626716,0.3608,84284.0,84283.0,0.1186692]
[1744898626909,0.3608,84284.0,84283.0,0.45146895]
[1744898627106,0.4794678,84284.0,84283.0,0.45146895]
[1744898627516,0.4794678,84284.0,84283.0,0.62096895]
[1744898628304,0.059327,84294.0,84293.0,0.1779792]
[1744898628613,0.17815353,84298.0,84297.0,0.1186495]
[1744898628816,0.17815353,84298.0,84297.0,0.45144925]
[1744898629209,0.00017793,84298.0,84297.0,0.45144925]
[1744898630016,0.00117793,84298.0,84297.0,0.45144925]
[1744898630316,0.00217793,84298.0,84297.0,0.45244925]
[1744898630817,0.0593017,84330.0,84320.0,0.1186171]
[1744898630818,0.1186164,84321.0,84320.0,0.1186171]
[1744898631205,0.1186164,84321.0,84320.0,0.45141685]
[1744898632424,0.0593067,84323.0,84322.0,0.1186143]
[1744898632721,0.0593067,84323.0,84322.0,0.45141405]
[1744898632921,0.0593067,84323.0,84322.0,0.45041405]
[1744898633111,0.0593067,84323.0,84322.0,0.62021405]
[1744898633511,0.0593067,84323.0,84322.0,0.62121405]
[1744898635212,0.0603067,84323.0,84322.0,0.62121405]
[1744898635413,0.0603067,84323.0,84322.0,0.50359975]
[1744898635621,0.0603067,84323.0,84322.0,0.62221405]
[1744898636118,0.1444067,84323.0,84322.0,0.62229405]
[1744898636319,0.5052067,84323.0,84322.0,0.50367975]
[1744898636518,0.5052067,84323.0,84322.0,0.08578]
[1744898637017,0.5052067,84323.0,84322.0,0.2043143]
[1744898637018,0.1444067,84323.0,84322.0,0.2043143]
[1744898637222,0.0603067,84323.0,84322.0,0.53719405]
[1744898638326,0.4211067,84323.0,84322.0,0.53719405]
[1744898639415,0.4211067,84323.0,84322.0,0.41857975]
[1744898639726,0.5135067,84323.0,84322.0,0.08578]
[1744898639925,0.5135067,84323.0,84322.0,0.0857]
[1744898640117,0.5135067,84323.0,84322.0,0.08578]
[1744898640527,0.118627,84313.0,84312.0,0.00017793]
[1744898640824,0.1186354,84308.0,84289.0,0.0859]
[1744898641024,0.1779629,84304.0,84303.0,0.1186399]
[1744898641213,0.0593205,84304.0,84301.0,0.0828]
[1744898641410,0.0593205,84304.0,84300.0,0.3608]
[1744898641411,0.1186439,84301.0,84300.0,0.3608]
[1744898641816,0.1186467,84299.0,84298.0,0.00883933]
[1744898642026,0.0593278,84293.0,84289.0,0.0846]
[1744898642225,0.1186593,84290.0,84289.0,0.53605915]
[1744898642529,0.1186593,84290.0,84289.0,0.2032594]
[1744898642823,0.1186593,84290.0,84289.0,0.0846]
[1744898643225,0.1186593,84290.0,84289.0,0.0856]
[1744898643825,0.1186762,84278.0,84276.0,0.0593388]
[1744898644026,0.1186762,84278.0,84277.0,0.44629397]
[1744898644325,0.4794762,84278.0,84277.0,0.24570413]
[1744898644717,0.4794762,84278.0,84277.0,0.24578413]
[1744898644919,0.4794762,84278.0,84277.0,0.24570413]
[1744898645221,0.5619762,84278.0,84277.0,0.24578413]
[1744898645622,0.6919762,84278.0,84277.0,0.24578413]
[1744898645925,1.0527762,84278.0,84277.0,0.24570413]
[1744898646127,1.0537762,84278.0,84277.0,0.24670413]
[1744898646319,1.0537762,84278.0,84277.0,0.24678413]
[1744898647033,1.0537762,84278.0,84277.0,0.24670413]
[1744898647226,1.0537762,84278.0,84277.0,0.24678413]
[1744898647629,1.0537762,84278.0,84277.0,0.00618219]
[1744898648928,1.0547762,84278.0,84277.0,0.00618219]
[1744898649535,1.0547762,84278.0,84277.0,0.00610219]
[1744898649829,0.118696,84264.0,84263.0,0.0861]
[1744898650033,0.118703,84259.0,84258.0,0.1188124]
[1744898650530,0.118703,84259.0,84258.0,0.45161215]
[1744898651332,0.1678,84263.0,84260.0,0.0593501]
[1744898651532,0.3458481,84263.0,84262.0,0.45149855]
[1744898651743,0.2635481,84263.0,84262.0,0.45149855]
[1744898652034,0.2635481,84263.0,84262.0,0.53059855]
[1744898652819,0.2645481,84263.0,84262.0,0.41189975]
[1744898653026,0.1186988,84262.0,84261.0,0.0798]
[1744898653330,0.118703,84259.0,84258.0,0.000108]
[1744898653526,0.1448507,84261.0,84260.0,0.12018984]
[1744898653726,0.0593507,84261.0,84260.0,0.33279975]
[1744898654032,0.0593507,84261.0,84260.0,0.41979975]
[1744898654226,0.0593507,84261.0,84260.0,0.53858135]
[1744898656126,0.0593507,84261.0,84260.0,0.62468135]
[1744898656332,0.0593483,84264.0,84263.0,0.1186974]
[1744898656534,0.0593483,84264.0,84263.0,0.45149715]
[1744898656727,0.17821843,84267.0,84266.0,0.1186931]
[1744898656927,0.11886963,84267.0,84266.0,0.81229285]
[1744898657127,0.11886963,84267.0,84266.0,0.97419285]
[1744898658036,0.1186807,84275.0,84274.0,0.1780193]
[1744898658222,0.0593391,84277.0,84276.0,0.1186791]
[1744898658422,0.0593362,84281.0,84277.0,0.1186776]
[1744898658622,0.0593362,84281.0,84277.0,0.61337735]
[1744898659436,0.4794762,84278.0,84277.0,0.61337735]
[1744898659624,0.4794762,84278.0,84277.0,0.49469975]
[1744898659827,0.4804762,84278.0,84277.0,0.61337735]
[1744898660030,0.4804762,84278.0,84277.0,0.61345735]
[1744898662325,0.3618,84278.0,84277.0,0.61345735]
[1744898662525,0.1196762,84278.0,84277.0,0.61345735]
[1744898662726,0.001,84278.0,84277.0,0.61345735]
[1744898663936,0.00017793,84286.0,84285.0,0.1186664]
[1744898664140,0.0593273,84294.0,84292.0,0.0593282]
[1744898664332,0.005,84306.0,84305.0,0.1186382]
[1744898664537,0.1236368,84306.0,84305.0,0.45143795]
[1744898664732,0.1236368,84306.0,84305.0,0.61023795]
[1744898665537,0.005,84306.0,84305.0,0.61023795]
[1744898665947,0.005,84306.0,84305.0,0.61833449]
[1744898666140,0.00017793,84314.0,84313.0,0.118627]
[1744898666441,0.00017793,84314.0,84313.0,0.45142675]
[1744898666842,0.00017793,84314.0,84313.0,0.61392675]
[1744898667928,0.0593025,84329.0,84328.0,0.1186045]
[1744898668444,0.0593025,84329.0,84328.0,0.45140425]
[1744898669044,0.1186157,84322.0,84321.0,0.1186144]
[1744898669834,0.1186157,84322.0,84321.0,0.23880424]
[1744898670037,0.0593071,84323.0,84322.0,0.1186143]
[1744898670232,0.0593071,84323.0,84322.0,0.45141405]
[1744898670638,0.4201071,84323.0,84322.0,0.45141405]
[1744898672045,0.3608,84323.0,84322.0,0.45141405]
[1744898672246,0.059306,84324.0,84323.0,0.1186129]
[1744898672433,0.059306,84324.0,84323.0,0.45141265]
[1744898673935,0.060306,84324.0,84323.0,0.45741265]
[1744898674436,0.060306,84324.0,84323.0,0.45841265]
[1744898675546,0.060306,84324.0,84323.0,0.45641265]
[1744898675743,0.060306,84324.0,84323.0,0.45841265]
[1744898676043,0.060306,84324.0,84323.0,0.1256129]
[1744898676548,0.059306,84324.0,84323.0,0.1206129]
[1744898676744,0.001,84324.0,84323.0,0.45749265]
[1744898676946,0.1196115,84324.0,84323.0,0.45949265]
[1744898677245,0.1196115,84324.0,84323.0,0.45749265]
[1744898677847,0.1186115,84324.0,84323.0,0.45349265]
[1744898678033,0.1196115,84324.0,84323.0,0.45949265]
[1744898678346,0.2021115,84324.0,84323.0,0.45941265]
[1744898678545,0.2863115,84324.0,84323.0,0.1256129]
[1744898678747,0.2863115,84324.0,84323.0,0.1256929]
[1744898678947,0.2863115,84324.0,84323.0,0.1256129]
[1744898679148,0.2863115,84324.0,84323.0,0.1256929]
[1744898679446,0.2863115,84324.0,84323.0,0.26838274]
[1744898680251,0.2863115,84324.0,84323.0,0.26338274]
[1744898680252,0.2853115,84324.0,84323.0,0.26338274]
[1744898680451,0.2863115,84324.0,84323.0,0.26738274]
[1744898680948,0.2863115,84324.0,84323.0,0.35008274]
[1744898681635,0.2863115,84324.0,84323.0,0.64559265]
[1744898682151,0.2863115,84324.0,84323.0,0.56269265]
[1744898682738,0.2863115,84324.0,84323.0,0.47999265]
[1744898683248,0.2863115,84324.0,84323.0,0.26738274]
[1744898683551,0.2863115,84324.0,84323.0,0.26730274]
[1744898683848,0.4053115,84324.0,84323.0,0.02858]
[1744898684052,0.4063115,84324.0,84323.0,0.02858]
[1744898684246,0.6563115,84324.0,84323.0,0.02858]
[1744898684549,0.4063115,84324.0,84323.0,0.0275]
[1744898684750,0.4063115,84324.0,84323.0,0.02758]
[1744898685249,0.1186157,84321.0,84320.0,0.00017793]
[1744898685435,0.7394157,84321.0,84320.0,0.00017793]
[1744898685745,1.1538157,84321.0,84320.0,0.00017793]
[1744898686045,0.9038157,84321.0,84320.0,0.00017793]
[1744898686249,0.9038157,84321.0,84300.0,0.1186444]
[1744898686250,0.1186439,84301.0,84300.0,0.1186444]
[1744898686446,0.1186467,84299.0,84298.0,0.0593236]
[1744898686858,0.1186467,84299.0,84298.0,0.39212335]
[1744898687047,0.2816467,84299.0,84298.0,0.55100335]
[1744898687346,0.2816467,84299.0,84298.0,0.55092335]
[1744898687545,0.2816467,84299.0,84298.0,0.55100335]
[1744898687743,0.2816467,84299.0,84298.0,0.56008553]
[1744898688358,0.4201208,84303.0,84301.0,0.0593219]
[1744898688647,0.2604593,84306.0,84305.0,0.1186382]
[1744898688847,0.141819,84306.0,84305.0,0.2774382]
[1744898689153,0.08,84320.0,84306.0,0.1186368]
[1744898689347,0.0825,84315.0,84306.0,0.45143655]
[1744898689555,0.420116,84310.0,84306.0,0.61023655]
[1744898689852,0.420116,84310.0,84306.0,0.69067655]
[1744898690044,0.0789,84309.0,84306.0,0.69067655]
[1744898690850,0.11881333,84307.0,84306.0,0.69067655]
[1744898691947,0.00017793,84307.0,84306.0,0.69067655]
[1744898692149,0.11881333,84307.0,84306.0,0.69067655]
[1744898692354,0.00117793,84307.0,84306.0,0.69067655]
[1744898692551,0.1186284,84313.0,84312.0,0.1779411]
[1744898692747,0.1186284,84313.0,84312.0,0.39055101]
[1744898692945,0.1186284,84313.0,84312.0,0.51074085]
[1744898693654,0.1955284,84313.0,84312.0,0.51074085]
[1744898694443,0.2770284,84313.0,84312.0,0.51074085]
[1744898694649,0.2770284,84313.0,84312.0,0.33279975]
[1744898694853,0.2770284,84313.0,84312.0,0.45142815]
[1744898695044,0.2770284,84313.0,84312.0,0.45150815]
[1744898695453,0.2770284,84313.0,84312.0,0.45142815]
[1744898695856,0.2770284,84313.0,84312.0,0.45150815]
[1744898696743,0.2780284,84313.0,84312.0,0.45350815]
[1744898699660,0.1965284,84313.0,84312.0,0.45350815]
[1744898699958,0.2793284,84313.0,84312.0,0.45350815]
[1744898700154,0.1965284,84313.0,84312.0,0.45350815]
[1744898700355,0.11879363,84321.0,84320.0,0.1186171]
[1744898700659,0.11879363,84321.0,84320.0,0.45141685]
[1744898701157,0.28619363,84321.0,84320.0,0.45141685]
[1744898701357,0.20339363,84321.0,84320.0,0.45141685]
[1744898701760,0.11879363,84321.0,84320.0,0.45141685]
[1744898702561,0.20259363,84321.0,84320.0,0.45341685]
[1744898702763,0.28129363,84321.0,84320.0,0.45341685]
[1744898703956,0.20259363,84321.0,84320.0,0.45341685]
[1744898704157,0.00117793,84321.0,84320.0,0.45341685]
[1744898705151,0.11979363,84321.0,84320.0,0.45341685]
[1744898705862,0.56129363,84321.0,84320.0,0.002]
[1744898706065,0.71889363,84321.0,84320.0,0.002]
[1744898706265,0.72889363,84321.0,84320.0,0.002]
[1744898706456,0.72889363,84321.0,84320.0,0.00208]
[1744898708654,0.1186256,84314.0,84313.0,0.000108]
[1744898708855,0.5094256,84314.0,84313.0,0.000108]
[1744898709055,0.118627,84313.0,84312.0,0.00017793]
[1744898709266,0.138627,84313.0,84312.0,0.00017793]
[1744898709460,0.292827,84313.0,84312.0,0.00017793]
[1744898710769,0.293827,84313.0,84312.0,0.12080633]
[1744898710965,0.293827,84313.0,84312.0,0.00217793]
[1744898711266,0.654627,84313.0,84312.0,0.00217793]
[1744898711460,0.74440669,84313.0,84312.0,0.00217793]
[1744898711853,0.38360669,84313.0,84312.0,0.00217793]
[1744898712062,0.74440669,84313.0,84312.0,0.00217793]
[1744898712264,0.38360669,84313.0,84312.0,0.00217793]
[1744898712472,0.74440669,84313.0,84312.0,0.00017793]
[1744898713158,0.74440669,84313.0,84312.0,0.00025793]
[1744898713556,0.74340669,84313.0,84312.0,0.00025793]
[1744898713754,0.74440669,84313.0,84312.0,0.00025793]
[1744898714164,0.74440669,84313.0,84312.0,0.00017793]
[1744898714369,0.74440669,84313.0,84312.0,0.00025793]
[1744898714560,0.74440669,84313.0,84312.0,0.00017793]
[1744898714764,0.74440669,84313.0,84312.0,0.00025793]
[1744898715153,0.74540669,84313.0,84312.0,0.00025793]
[1744898715964,0.74540669,84313.0,84312.0,0.00017793]
[1744898716266,0.655627,84313.0,84312.0,0.00025793]
[1744898716959,0.1186607,84289.0,84288.0,0.1186607]
[1744898717159,0.4794607,84289.0,84288.0,0.1186607]
[1744898717362,0.5549607,84289.0,84288.0,0.45146045]
[1744898717561,0.5549607,84289.0,84288.0,0.45154045]
[1744898717870,0.3608,84289.0,84288.0,0.46052845]
[1744898718066,0.1186607,84289.0,84288.0,0.46052845]
[1744898718266,0.1186607,84289.0,84288.0,0.41636775]
[1744898718762,0.1186607,84289.0,84288.0,0.53502995]
[1744898718961,0.2742607,84289.0,84288.0,0.53494995]
[1744898719167,0.2742607,84289.0,84288.0,0.53502995]
[1744898719368,0.2742607,84289.0,84288.0,0.41636775]
[1744898719569,0.2752607,84289.0,84288.0,0.41636775]
[1744898719869,0.2752607,84289.0,84288.0,0.34186775]
[1744898720272,0.2752607,84289.0,84288.0,0.33287975]
[1744898720571,0.001,84289.0,84288.0,0.46036449]
[1744898720871,0.1196607,84289.0,84288.0,0.61604449]
[1744898722570,0.0593296,84290.0,84289.0,0.1186607]
[1744898722871,0.0593296,84290.0,84289.0,0.60706045]
[1744898724670,0.0593296,84290.0,84289.0,0.48839975]
[1744898724861,0.2201296,84290.0,84289.0,0.60706045]
[1744898725061,0.2201296,84290.0,84289.0,0.60714045]
[1744898725270,0.1186574,84292.0,84291.0,0.1186579]
[1744898725662,0.2373071,84295.0,84294.0,0.1186537]
[1744898725869,0.2373071,84295.0,84294.0,0.45145345]
[1744898727063,0.2383071,84295.0,84294.0,0.45145345]
[1744898728172,0.3150071,84295.0,84294.0,0.45145345]
[1744898729571,0.3140071,84295.0,84294.0,0.45145345]
[1744898729875,0.3150071,84295.0,84294.0,0.45145345]
[1744898730275,0.001,84295.0,84294.0,0.39212655]
[1744898730477,0.1196523,84295.0,84294.0,0.51078025]
[1744898730676,0.001,84295.0,84294.0,0.51078025]
[1744898730879,0.00017793,84297.0,84296.0,0.1186509]
[1744898731082,0.0593208,84303.0,84299.0,0.0593233]
[1744898731282,0.0593214,84302.0,84301.0,0.1779643]
[1744898731473,0.0593214,84302.0,84301.0,0.18968774]
[1744898731674,0.0593214,84302.0,84301.0,0.52248749]
[1744898731981,0.1371214,84302.0,84301.0,0.52248749]
[1744898732870,0.1381214,84302.0,84301.0,0.52248749]
[1744898733379,0.1371214,84302.0,84301.0,0.52248749]
[1744898733578,0.1381214,84302.0,84301.0,0.52248749]
[1744898733970,0.1381214,84302.0,84301.0,0.52256749]
[1744898734171,0.0603214,84302.0,84301.0,0.52256749]
[1744898735283,0.0603214,84302.0,84301.0,0.52356749]
[1744898735483,0.1383214,84302.0,84301.0,0.33387975]
[1744898735677,0.2995214,84302.0,84301.0,0.45252365]
[1744898735877,0.2995214,84302.0,84301.0,0.45244365]
[1744898736078,0.2995214,84302.0,84301.0,0.45252365]
[1744898736676,0.2995214,84302.0,84301.0,0.33387975]
[1744898736883,0.2985214,84302.0,84301.0,0.45152365]
[1744898737178,0.079,84302.0,84301.0,0.45252365]
[1744898737486,0.1196424,84302.0,84301.0,0.45252365]
[1744898737670,0.1196424,84302.0,84301.0,0.52962365]
[1744898737984,0.001,84302.0,84301.0,0.52962365]
[1744898738186,0.1196424,84302.0,84301.0,0.52962365]
[1744898738891,0.1196424,84302.0,84301.0,0.52862365]
[1744898739079,0.1196424,84302.0,84301.0,0.1187239]
[1744898739275,0.2815424,84302.0,84301.0,0.1187239]
[1744898739481,0.2825424,84302.0,84301.0,0.1186439]
[1744898739881,0.0807,84302.0,84301.0,0.45144365]
[1744898740074,0.1186385,84305.0,84304.0,0.177958]
[1744898740474,0.1186385,84305.0,84304.0,0.51075775]
[1744898740675,0.1993385,84305.0,84304.0,0.51075775]
[1744898741087,0.1993385,84305.0,84304.0,0.33279975]
[1744898741283,0.1186424,84302.0,84301.0,8e-05]
[1744898741586,0.1779799,84296.0,84295.0,0.1780774]
[1744898741986,0.1779799,84296.0,84295.0,0.51087715]
[1744898742687,0.2373061,84296.0,84295.0,0.57020325]
[1744898743088,0.0603262,84296.0,84295.0,0.57020325]
[1744898743289,0.0603262,84296.0,84295.0,0.70640325]
[1744898743489,0.0593262,84296.0,84295.0,0.70640325]
[1744898743690,0.1169262,84296.0,84295.0,0.70640325]
[1744898745190,0.1159262,84296.0,84295.0,0.70640325]
[1744898745482,0.1169262,84296.0,84295.0,0.70640325]
[1744898746792,0.0576,84296.0,84295.0,0.70640325]
[1744898746992,0.001,84296.0,84295.0,0.70640325]
[1744898747179,0.001,84296.0,84295.0,0.76220325]
[1744898748193,0.0554,84304.0,84303.0,0.118641]
[1744898748494,0.0554,84304.0,84303.0,0.45144075]
[1744898748690,0.1740396,84304.0,84303.0,0.56294075]
[1744898749198,0.0554,84304.0,84303.0,0.56294075]
[1744898749387,0.1740396,84304.0,84303.0,0.33279975]
[1744898749583,0.1750396,84304.0,84303.0,0.12018984]
[1744898749783,0.0564,84304.0,84303.0,0.23883084]
[1744898749984,0.0564,84304.0,84303.0,0.45144075]
[1744898750192,0.0564,84304.0,84303.0,0.56302075]
[1744898751286,0.001,84304.0,84303.0,0.56302075]
[1744898751491,0.001,84304.0,84303.0,0.92382075]
[1744898751785,0.3608,84313.0,84309.0,0.1186326]
[1744898751995,0.3608,84313.0,84309.0,0.45143235]
[1744898752191,0.3608,84313.0,84309.0,0.61233235]
[1744898752990,0.00117793,84310.0,84309.0,0.61233235]
[1744898753791,0.12006403,84319.0,84312.0,0.0593142]
[1744898754091,0.12006403,84319.0,84318.0,0.45141965]
[1744898754493,0.12006403,84319.0,84318.0,0.56091965]
[1744898754688,0.0595,84332.0,84325.0,0.1186101]
[1744898754883,0.0593015,84330.0,84325.0,0.45140985]
[1744898755288,0.26823763,84326.0,84325.0,0.45140985]
[1744898755495,0.14962893,84326.0,84325.0,0.55990985]
[1744898756092,0.14962893,84326.0,84325.0,0.56090985]
[1744898756395,0.26823763,84326.0,84325.0,0.56090985]
[1744898756695,0.32373763,84326.0,84325.0,0.56090985]
[1744898756900,0.37643763,84326.0,84325.0,0.56090985]
[1744898757193,0.37643763,84326.0,84325.0,0.12118984]
[1744898757395,0.37643763,84326.0,84325.0,0.12126984]
[1744898757586,0.37643763,84326.0,84325.0,0.23987994]
[1744898758092,0.2268087,84326.0,84325.0,0.23987994]
[1744898758492,0.2268087,84326.0,84325.0,0.12126984]
[1744898758793,0.2268087,84326.0,84325.0,0.00108]
[1744898758994,0.2268087,84326.0,84325.0,0.1196101]
[1744898759188,0.2268087,84326.0,84325.0,0.1196901]
[1744898760899,0.2268087,84326.0,84325.0,0.50778985]
[1744898761090,0.2268087,84326.0,84325.0,0.56318985]
[1744898761700,0.2268087,84326.0,84325.0,0.12126984]
[1744898761901,0.2268087,84326.0,84325.0,0.23979994]
[1744898762199,0.2268087,84326.0,84325.0,0.23987994]
[1744898762400,0.2268087,84326.0,84325.0,0.12126984]
[1744898762997,0.2268087,84326.0,84325.0,0.00108]
[1744898763394,0.2368087,84326.0,84325.0,0.001]
[1744898763595,0.2368087,84326.0,84325.0,0.00108]
[1744898764708,0.0637,84326.0,84325.0,0.23987994]
[1744898765004,0.1196087,84326.0,84325.0,0.12126984]
[1744898765211,0.1196087,84326.0,84325.0,0.00108]
[1744898765409,0.2281087,84326.0,84325.0,0.001]
[1744898765611,0.2281087,84326.0,84325.0,0.00108]
[1744898766506,0.2281087,84326.0,84325.0,0.001]
[1744898766809,0.2281087,84326.0,84325.0,0.00108]
[1744898767304,0.2381087,84326.0,84325.0,0.00108]
[1744898768494,0.2381087,84326.0,84325.0,0.001]
[1744898769106,0.2381087,84326.0,84325.0,0.00108]
[1744898770706,0.2381087,84326.0,84325.0,0.1196901]
[1744898771097,0.2381087,84326.0,84325.0,0.1720901]
[1744898771302,0.2381087,84326.0,84325.0,0.00108]
[1744898774610,0.2381087,84326.0,84325.0,0.1196901]
[1744898775202,0.2381087,84326.0,84325.0,0.00108]
[1744898776008,0.1095,84326.0,84325.0,0.45248985]
[1744898776213,0.0545,84326.0,84325.0,0.45248985]
[1744898776513,0.0545,84326.0,84325.0,0.55698985]
[1744898776716,0.1731087,84326.0,84325.0,0.1672901]
[1744898776916,0.2254087,84326.0,84325.0,0.1672901]
[1744898777406,0.2254087,84326.0,84325.0,0.2241901]
[1744898778017,0.2254087,84326.0,84325.0,0.43680001]
[1744898778223,0.2254087,84326.0,84325.0,0.55698985]
[1744898779106,0.1731087,84326.0,84325.0,0.55698985]
[1744898780209,0.2197087,84326.0,84325.0,0.55698985]
[1744898780616,0.1731087,84326.0,84325.0,0.55698985]
[1744898781212,0.1196087,84326.0,84325.0,0.55698985]
[1744898781412,0.1186019,84331.0,84330.0,0.1779031]
[1744898781715,0.1186019,84331.0,84330.0,0.51070285]
[1744898781919,0.1186019,84331.0,84330.0,0.5223397]
[1744898782420,0.1186019,84331.0,84330.0,0.6124397]
[1744898782618,0.1186019,84331.0,84330.0,0.6578397]
[1744898782922,0.1196019,84331.0,84330.0,0.6578397]
[1744898783418,0.1206019,84331.0,84330.0,0.64620285]
[1744898784914,0.002,84331.0,84330.0,0.64620285]
[1744898785215,0.1206017,84331.0,84330.0,0.64620285]
[1744898785915,0.1206017,84331.0,84330.0,0.65813605]
[1744898786913,0.00017793,84334.0,84331.0,0.0593001]
[1744898787217,0.3608,84343.0,84330.0,0.68772444]
[1744898787218,0.26820243,84351.0,84350.0,0.1185749]
[1744898787412,0.26820243,84351.0,84350.0,0.33118481]
[1744898787620,0.1185763,84349.0,84348.0,0.2111771]
[1744898787819,0.1185763,84349.0,84348.0,0.1640771]
[1744898788213,0.2092763,84349.0,84348.0,0.1641571]
[1744898789216,0.2102763,84349.0,84348.0,0.1641571]
[1744898789418,0.001,84349.0,84348.0,0.49695685]
[1744898789926,0.002,84349.0,84348.0,0.49695685]
[1744898790424,0.002,84349.0,84348.0,0.50591409]
[1744898791520,0.1205763,84349.0,84348.0,0.50591409]
[1744898792014,0.1205763,84349.0,84340.0,0.00017793]
[1744898792015,0.1185988,84333.0,84314.0,0.0594202]
[1744898792221,0.5093988,84333.0,84316.0,0.0926]
[1744898792526,0.177923,84324.0,84323.0,0.0593045]
[1744898793411,0.1186143,84322.0,84321.0,0.0469]
[1744898793711,0.1186143,84322.0,84321.0,0.22803319]
[1744898793910,0.2130143,84322.0,84321.0,0.22803319]
[1744898794116,0.2130143,84322.0,84321.0,0.34664889]
[1744898794419,0.177915,84329.0,84328.0,0.1779032]
[1744898794617,0.0464,84341.0,84340.0,0.118589]
[1744898794924,0.3608,84342.0,84341.0,0.45138735]
[1744898796026,0.3618,84342.0,84341.0,0.45338735]
[1744898796612,0.3618,84342.0,84341.0,0.50138735]
[1744898796817,0.0592811,84359.0,84349.0,0.1185763]
[1744898797026,0.1235644,84358.0,84349.0,0.81217605]
[1744898797323,0.1185745,84351.0,84349.0,0.45137605]
[1744898797625,0.11875283,84350.0,84349.0,0.33279975]
[1744898797921,0.20895283,84350.0,84349.0,0.45145605]
[1744898798322,0.20995283,84350.0,84349.0,0.23884614]
[1744898798518,0.21095283,84350.0,84349.0,0.23884614]
[1744898799122,0.16635283,84350.0,84349.0,0.23884614]
[1744898799816,0.16635283,84350.0,84349.0,0.45145605]
[1744898801033,0.21055283,84350.0,84349.0,0.49835605]
[1744898801922,0.21055283,84350.0,84349.0,0.49827605]
[1744898802130,0.21055283,84350.0,84349.0,0.49835605]
[1744898805019,0.21055283,84350.0,84349.0,0.1186563]
[1744898807233,0.21055283,84350.0,84349.0,8e-05]
[1744898807528,0.22055283,84350.0,84349.0,8e-05]
[1744898807737,0.1185834,84344.0,84343.0,0.000108]
[1744898807936,0.1185974,84334.0,84333.0,0.05947713]
[1744898808133,0.4793974,84334.0,84333.0,0.05947713]
[1744898808325,0.5695974,84334.0,84333.0,0.05947713]
[1744898808843,0.0459,84343.0,84333.0,0.05947713]
[1744898808844,0.00117793,84350.0,84342.0,0.1778778]
[1744898809024,0.1049929,84343.0,84342.0,0.1778778]
[1744898809228,0.4657929,84343.0,84342.0,0.1778778]
[1744898809634,0.1185876,84341.0,84340.0,0.059294]
[1744898809835,0.1185974,84334.0,84333.0,0.00217793]
[1744898810037,0.4793974,84334.0,84333.0,0.00217793]
[1744898810334,0.6132974,84334.0,84333.0,0.12077673]
[1744898811330,0.6132974,84334.0,84333.0,0.11877673]
[1744898811532,0.6132974,84334.0,84333.0,0.14733785]
[1744898812138,0.4075,84334.0,84333.0,0.5281376]
[1744898812337,0.4075,84334.0,84333.0,0.5282176]
[1744898812530,0.4075,84334.0,84333.0,0.51252057]
[1744898812732,0.5560974,84334.0,84333.0,0.39500177]
[1744898812930,0.3608,84316.0,84303.0,0.24570256]
[1744898813134,0.3608,84316.0,84282.0,0.01167565]
[1744898813135,0.0593227,84300.0,84282.0,0.01167565]
[1744898813339,0.1186762,84278.0,84266.0,0.48161972]
[1744898813538,0.5194762,84278.0,84266.0,0.48161972]
[1744898813741,0.4008,84278.0,84277.0,0.00518219]
[1744898813946,0.4794762,84278.0,84277.0,0.19613125]
[1744898814143,0.4794762,84278.0,84277.0,0.29014356]
[1744898814441,0.5243762,84278.0,84277.0,0.29014356]
[1744898814637,0.2074762,84278.0,84277.0,0.29014356]
[1744898815331,0.1186762,84278.0,84277.0,0.40882116]
[1744898815530,0.05951053,84286.0,84284.0,0.1186678]
[1744898815531,0.0894,84285.0,84284.0,0.1186678]
[1744898815732,0.00017793,84286.0,84285.0,0.19001786]
[1744898815949,0.00017793,84286.0,84285.0,0.76242777]
[1744898816244,0.3608,84304.0,84285.0,0.76242777]
[1744898816245,0.1186481,84298.0,84297.0,0.0593242]
[1744898816434,0.1186481,84298.0,84297.0,0.2218709]
[1744898816637,0.1186481,84298.0,84297.0,0.50683227]
[1744898816850,0.1186481,84298.0,84297.0,0.32886137]
[1744898817057,0.0593283,84292.0,84291.0,0.1186579]
[1744898817451,0.0593283,84292.0,84291.0,0.40369927]
[1744898817847,0.0593283,84292.0,84291.0,0.40269927]
[1744898818255,0.0593283,84292.0,84291.0,0.44499927]
[1744898818449,0.0603283,84292.0,84291.0,0.44499927]
[1744898820054,0.0603283,84292.0,84291.0,0.44699927]